fUSD/lending_fUSD_20240214
["ID","MTS","AMOUNT","RATE_DAILY","PERIOD"]
[314046348,1707945105125,-1264.88,0.00040821,7]
[314046349,1707945105134,-4521.24,0.00040821,7]
[314046350,1707945105143,-791.66,0.00040821,7]
[314046351,1707945105153,-4808.1,0.00040821,7]
[314046352,1707945105162,-1751.89,0.00040821,7]
[314046353,1707945105171,-660.03,0.00040821,7]
[314046354,1707945105180,-665.94,0.00040821,7]
[314046355,1707945105190,-720.52,0.00040821,7]
[314046356,1707945105199,-1028.68,0.00040821,7]
[314046357,1707945105208,-1411.1,0.00040821,7]
[314046358,1707945105217,-1101.95,0.00040821,7]
[314046359,1707945105227,-633.08,0.00040821,7]
[314046360,1707945105236,-679.4,0.00040821,7]
[314046361,1707945105245,-1588.43,0.00040821,7]
[314046362,1707945105254,-859.31,0.00040821,7]
[314046363,1707945105264,-570.05,0.00040821,7]
[314046364,1707945105273,-2455.03,0.00040821,7]
[314046365,1707945105283,-352.48727094,0.00040821,7]
[314046366,1707945105352,-6475.88272906,0.00040821,7]
[314046367,1707945105361,-500.0,0.00040821,7]
[314046368,1707945105370,-7718.39,0.00040821,7]
[314046369,1707945105379,-500.0,0.00040821,7]
[314046370,1707945105389,-500.0,0.00040821,7]
[314046371,1707945105398,-730.4,0.00040821,7]
[314046372,1707945105407,-1547.02,0.00040821,7]
[314046373,1707945105416,-1211.6,0.00040821,7]
[314046374,1707945105425,-592.22,0.00040821,7]
[314046375,1707945105434,-1187.29,0.00040821,7]
[314046376,1707945105442,-6862.69,0.00040821,7]
[314046377,1707945105451,-500.0,0.00040821,7]
[314046378,1707945105460,-1752.35,0.00040821,7]
[314046379,1707945105469,-565.71,0.00040821,7]
[314046380,1707945105478,-551.53,0.00040821,7]
[314046381,1707945105488,-500.0,0.00040821,7]
[314046382,1707945105497,-828.25,0.00040821,7]
[314046383,1707945105506,-865.42,0.00040821,7]
[314046384,1707945105515,-5366.99,0.00040821,7]
[314046385,1707945105524,-1003.79,0.00040821,7]
[314046386,1707945105533,-1623.54,0.00040821,7]
[314046387,1707945105542,-1200.22,0.00040821,7]
[314046388,1707945105551,-558.49,0.00040821,7]
[314046389,1707945105560,-500.0,0.00040821,7]
[314046390,1707945105569,-1014.56,0.00040821,7]
[314046391,1707945105578,-995.34,0.00040821,7]
[314046392,1707945105588,-1044.44,0.00040821,7]
[314046393,1707945105597,-501.11,0.00040821,7]
[314046394,1707945105606,-1716.87,0.00040821,7]
[314046395,1707945105615,-1848.23,0.00040821,7]
[314046396,1707945105625,-587.47,0.00040821,7]
[314046397,1707945105634,-1168.36,0.00040821,7]
[314046398,1707945105643,-2233.44,0.00040821,7]
[314046399,1707945105652,-983.47,0.00040821,7]
[314046400,1707945105661,-580.91,0.00040821,7]
[314046401,1707945105670,-826.29,0.00040821,7]
[314046402,1707945105679,-972.52,0.00040821,7]
[314046403,1707945105688,-898.19,0.00040821,7]
[314046404,1707945105697,-2032.9,0.00040821,7]
[314046405,1707945105707,-647.49,0.00040821,7]
[314046406,1707945105716,-551.52,0.00040821,7]
[314046407,1707945105725,-778.33,0.00040821,7]
[314046408,1707945105734,-7693.98,0.00040821,7]
[314046409,1707945105743,-500.0,0.00040821,7]
[314046410,1707945105754,-3552.29,0.00040821,7]
[314046411,1707945105763,-630.27,0.00040821,7]
[314046412,1707945105774,-3310.79,0.00040821,7]
[314046413,1707945105783,-569.11,0.00040821,7]
[314046414,1707945105792,-1313.58,0.00040821,7]
[314046415,1707945105802,-500.0,0.00040821,7]
[314046416,1707945105812,-500.0,0.00040899,2]
[314046417,1707945105823,-500.0,0.00040899,2]
[314046418,1707945105832,-500.0,0.00040899,2]
[314046419,1707945105841,-500.0,0.00040899,2]
[314046420,1707945105850,-500.0,0.00040899,2]
[314046421,1707945105860,-500.0,0.00040899,2]
[314046422,1707945105870,-500.0,0.00040899,2]
[314046423,1707945105879,-500.0,0.00040899,2]
[314046424,1707945105889,-500.0,0.00040899,2]
[314046425,1707945105898,-500.0,0.00040899,2]
[314046426,1707945105907,-500.0,0.00040899,2]
[314046427,1707945105917,-500.0,0.00040899,2]
[314046428,1707945105929,-500.0,0.00040899,2]
[314046429,1707945105938,-500.0,0.00040899,2]
[314046430,1707945105947,-500.0,0.00040899,2]
[314046431,1707945105962,-500.0,0.00040899,2]
[314046432,1707945105972,-450.0,0.00040899,2]
[314046433,1707945105981,-500.0,0.00040899,2]
[314046434,1707945105990,-500.0,0.00040899,2]
[314046435,1707945106000,-500.0,0.00040899,2]
[314046436,1707945106009,-500.0,0.00040899,2]
[314046437,1707945106018,-500.0,0.00040899,2]
[314046438,1707945106028,-500.0,0.00040899,2]
[314046439,1707945106038,-500.0,0.00040899,2]
[314046440,1707945106047,-500.0,0.00040899,2]
[314046441,1707945106056,-500.0,0.00040899,2]
[314046442,1707945106065,-500.0,0.00040899,2]
[314046443,1707945106076,-500.0,0.00040899,2]
[314046444,1707945106085,-500.0,0.00040899,2]
[314046445,1707945106094,-500.0,0.00040899,2]
[314046446,1707945106103,-500.0,0.00040899,2]
[314046447,1707945106113,-500.0,0.00040899,2]
[314046448,1707945106122,-500.0,0.00040899,2]
[314046449,1707945106132,-500.0,0.00040899,2]
[314046450,1707945106142,-500.0,0.00040899,2]
[314046451,1707945106151,-500.0,0.00040899,2]
[314046452,1707945106160,-500.0,0.00040899,2]
[314046453,1707945106170,-500.0,0.00040899,2]
[314046454,1707945106179,-500.0,0.00040899,2]
[314046455,1707945106188,-500.0,0.00040899,2]
[314046456,1707945106198,-500.0,0.00040899,2]
[314046457,1707945106207,-500.0,0.00040899,2]
[314046458,1707945106216,-500.0,0.00040899,2]
[314046459,1707945106226,-500.0,0.00040899,2]
[314046460,1707945106235,-500.0,0.00040899,2]
[314046461,1707945106244,-500.0,0.00040899,2]
[314046462,1707945106254,-500.0,0.00040899,2]
[314046463,1707945106264,-500.0,0.00040899,2]
[314046464,1707945106273,-500.0,0.00040899,2]
[314046465,1707945106282,-500.0,0.00040899,2]
[314046466,1707945106291,-500.0,0.00040899,2]
[314046467,1707945106301,-500.0,0.00040899,2]
[314046468,1707945106310,-500.0,0.00040899,2]
[314046469,1707945106319,-500.0,0.00040899,2]
[314046470,1707945106328,-500.0,0.00040899,2]
[314046471,1707945106338,-500.0,0.00040899,2]
[314046472,1707945106347,-500.0,0.00040899,2]
[314046473,1707945106356,-450.0,0.00040899,2]
[314046474,1707945106365,-500.0,0.00040899,2]
[314046475,1707945106374,-500.0,0.00040899,2]
[314046476,1707945106383,-500.0,0.00040899,2]
[314046477,1707945106393,-500.0,0.00040899,2]
[314046478,1707945106403,-500.0,0.00040899,2]
[314046479,1707945106412,-500.0,0.00040899,2]
[314046480,1707945106422,-500.0,0.00040899,2]
[314046481,1707945106433,-500.0,0.00040899,2]
[314046482,1707945106443,-500.0,0.00040899,2]
[314046483,1707945106454,-500.0,0.00040899,2]
[314046484,1707945106464,-500.0,0.00040899,2]
[314046485,1707945106474,-500.0,0.00040899,2]
[314046486,1707945106484,-500.0,0.00040899,2]
[314046487,1707945106493,-500.0,0.00040899,2]
[314046488,1707945106502,-500.0,0.00040899,2]
[314046489,1707945106512,-500.0,0.00040899,2]
[314046490,1707945106524,-500.0,0.00040899,2]
[314046491,1707945106535,-500.0,0.00040899,2]
[314046492,1707945106545,-500.0,0.00040899,2]
[314046493,1707945106555,-500.0,0.00040899,2]
[314046494,1707945106565,-500.0,0.00040899,2]
[314046495,1707945106574,-500.0,0.00040899,2]
[314046496,1707945106585,-500.0,0.00040899,2]
[314046497,1707945106595,-500.0,0.00040899,2]
[314046498,1707945106604,-500.0,0.00040899,2]
[314046499,1707945106615,-500.0,0.00040899,2]
[314046500,1707945106625,-500.0,0.00040899,2]
[314046501,1707945106635,-500.0,0.00040899,2]
[314046502,1707945106648,-500.0,0.00040899,2]
[314046503,1707945106657,-500.0,0.00040899,2]
[314046504,1707945106666,-500.0,0.00040899,2]
[314046505,1707945106676,-500.0,0.00040899,2]
[314046506,1707945106685,-500.0,0.00040899,2]
[314046507,1707945106694,-500.0,0.00040899,2]
[314046508,1707945106703,-500.0,0.00040899,2]
[314046509,1707945106713,-500.0,0.00040899,2]
[314046510,1707945106723,-500.0,0.00040899,2]
[314046511,1707945106733,-500.0,0.00040899,2]
[314046512,1707945106742,-500.0,0.00040899,2]
[314046513,1707945106753,-500.0,0.00040899,2]
[314046514,1707945106762,-350.0,0.00040899,2]
[314046515,1707945106772,-500.0,0.00040899,2]
[314046516,1707945106781,-500.0,0.00040899,2]
[314046517,1707945106790,-500.0,0.00040899,2]
[314046518,1707945106799,-500.0,0.00040899,2]
[314046519,1707945106809,-500.0,0.00040899,2]
[314046520,1707945106818,-500.0,0.00040899,2]
[314046521,1707945106828,-500.0,0.00040899,2]
[314046522,1707945106837,-500.0,0.00040899,2]
[314046523,1707945106847,-500.0,0.00040899,2]
[314046524,1707945106857,-500.0,0.00040899,2]
[314046525,1707945106866,-500.0,0.00040899,2]
[314046526,1707945106876,-500.0,0.00040899,2]
[314046527,1707945106887,-500.0,0.00040899,2]
[314046528,1707945106898,-500.0,0.00040899,2]
[314046529,1707945106906,-500.0,0.00040899,2]
[314046530,1707945106915,-500.0,0.00040899,2]
[314046531,1707945106925,-500.0,0.00040899,2]
[314046532,1707945106934,-500.0,0.00040899,2]
[314046533,1707945106944,-500.0,0.00040899,2]
[314046534,1707945106958,-500.0,0.00040899,2]
[314046535,1707945106967,-500.0,0.00040899,2]
[314046536,1707945106976,-500.0,0.00040899,2]
[314046537,1707945106986,-266.52888896,0.00040899,2]
[314046538,1707945107235,-233.47111104,0.00040899,2]
[314046539,1707945107245,-500.0,0.00040899,2]
[314046540,1707945107255,-500.0,0.00040899,2]
[314046541,1707945107266,-500.0,0.00040899,2]
[314046542,1707945107275,-500.0,0.00040899,2]
[314046543,1707945107286,-400.0,0.00040899,2]
[314046544,1707945107296,-218.00798154,0.00040899,2]
[314046545,1707945107320,-500.0,0.0003493,2]
[314046546,1707945107330,-281.99201846,0.00040899,2]
[314046547,1707945107339,-500.0,0.00040899,2]
[314046548,1707945107348,-500.0,0.00040899,2]
[314046549,1707945107358,-99.31873861,0.00040899,2]
[314046560,1707945956745,176.024039,0.00022109,2]
[314046561,1707946016134,-1250.0,0.00025,3]
[314046562,1707946016156,-923.2,0.00025702,2]
[314046563,1707946016177,-1150.09525098,0.00027,3]
[314046599,1707946231864,-149.90474902,0.00027,3]
[314046601,1707946231873,-235.32548833,0.000288,2]
[314046603,1707946231883,-323.9707,0.000289,2]
[314046605,1707946231893,-1350.0,0.00029,3]
[314046607,1707946231903,-1400.0,0.00031,3]
[314046609,1707946231912,-28.46634397,0.0003102,2]
[314046622,1707946232024,-652.27365603,0.0003102,2]
[314046624,1707946232033,-47.89507678,0.00031099,3]
[314046626,1707946232045,-102.10492322,0.00031099,3]
[314046628,1707946232055,-975.43916343,0.000311,2]
[314046632,1707946232081,-2087.56083657,0.000311,2]
[314046634,1707946232090,-3323.48033193,0.000311,2]
[314046636,1707946232102,-16664.51966807,0.000311,2]
[314046637,1707946232111,-1000.52627188,0.000318,2]
[314046638,1707946232120,-499.99,0.00032128,2]
[314046639,1707946232130,-826.03048052,0.00032199,7]
[314046640,1707946232139,-807.37,0.00032872,2]
[314046641,1707946232149,-17863.22797449,0.00032885,2]
[314046643,1707946232160,-6036.77202551,0.00032885,2]
[314046645,1707946232169,-150.28,0.00032895,2]
[314046647,1707946232179,-500.0,0.00032903,2]
[314046649,1707946232188,-1000.0,0.00032908,2]
[314046652,1707946232198,-3279.54,0.00032915,2]
[314046655,1707946232207,-2000.0,0.00032934,2]
[314046658,1707946232216,-500.0,0.00032946,2]
[314046661,1707946232225,-300.0,0.00032999,2]
[314046664,1707946232234,-172.30581894,0.00032999,2]
[314046667,1707946232243,-1450.0,0.00033,3]
[314046670,1707946232252,-200.0,0.00033015,2]
[314046673,1707946232265,-150.0,0.00033031,2]
[314046676,1707946232274,-184.21,0.00033042,5]
[314046679,1707946232283,-250.0,0.00033081,2]
[314046682,1707946232292,-174.75,0.00033106,120]
[314046685,1707946232302,-250.0,0.00033135,111]
[314046688,1707946232312,-186.19,0.00033135,2]
[314046691,1707946232321,-250.0,0.0003314,2]
[314046694,1707946232331,-165.69,0.00033149,2]
[314046697,1707946232342,-200.0,0.00033167,2]
[314046699,1707946232351,-680.74,0.00033284,2]
[314046701,1707946232361,-189.8,0.00033288,120]
[314046703,1707946232370,-249.4,0.00033321,2]
[314046705,1707946232379,-186.19,0.00033326,2]
[314046707,1707946232389,-1197.98,0.00033351,2]
[314046709,1707946232399,-153.13,0.000335,2]
[314046711,1707946232408,-153.13,0.000335,2]
[314046713,1707946232418,-153.13,0.000335,2]
[314046715,1707946232428,-153.13,0.000335,2]
[314046717,1707946232437,-153.13,0.000335,2]
[314046719,1707946232447,-153.13,0.000335,2]
[314046721,1707946232456,-153.13,0.000335,2]
[314046723,1707946232465,-153.13,0.000335,2]
[314046725,1707946232474,-153.13,0.000335,2]
[314046727,1707946232485,-153.13,0.000335,2]
[314046729,1707946232495,-153.13,0.000335,2]
[314046731,1707946232505,-153.13,0.000335,2]
[314046733,1707946232515,-153.13,0.000335,2]
[314046735,1707946232524,-186.19,0.00033518,2]
[314046737,1707946232534,-186.19,0.00033709,2]
[314046739,1707946232543,-186.19,0.00033901,2]
[314046741,1707946232552,-150.0,0.00034,2]
[314046743,1707946232562,-186.19,0.00034092,2]
[314046745,1707946232571,-222.021518,0.00034198,7]
[314046746,1707946232580,-210.0,0.00034209,3]
[314046748,1707946232590,-186.19,0.00034284,2]
[314046749,1707946232599,-222.021518,0.00034298,6]
[314046750,1707946232609,-222.021518,0.00034398,7]
[314046751,1707946232619,-300.0,0.00034466,2]
[314046752,1707946232629,-186.19,0.00034475,2]
[314046753,1707946232834,-222.021518,0.00034498,11]
[314046754,1707946232844,-807.37,0.00034516,2]
[314046755,1707946232854,-222.021518,0.00034598,6]
[314046756,1707946232864,-155.0,0.00034616,2]
[314046757,1707946232874,-186.19,0.00034667,2]
[314046758,1707946232883,-222.021518,0.00034698,6]
[314046759,1707946232893,-222.021518,0.00034798,11]
[314046760,1707946232903,-186.19,0.00034858,2]
[314046761,1707946232913,-222.021518,0.00034898,6]
[314046762,1707946232922,-249.4,0.00034987,2]
[314046763,1707946232931,-222.021518,0.00034998,6]
[314046764,1707946232940,-222.021518,0.00035098,6]
[314046765,1707946232949,-179.24,0.0003514,120]
[314046766,1707946232959,-2500.0,0.0003516,2]
[314046767,1707946232968,-159.08321204,0.00035163,2]
[314046768,1707946232978,-222.021518,0.00035198,6]
[314046769,1707946232987,-13508.0015,0.00035263,2]
[314046770,1707946232997,-222.021518,0.00035298,7]
[314046771,1707946233006,-1000.0,0.000353,2]
[314046772,1707946233016,-1947.0,0.00035363,2]
[314046773,1707946233025,-429.0,0.00035363,2]
[314046774,1707946233035,-237.0,0.00035363,2]
[314046775,1707946233044,-198.839,0.00035363,2]
[314046776,1707946233054,-1003.0,0.00035363,2]
[314046777,1707946233064,-858.0,0.00035363,2]
[314046778,1707946233074,-1138.0,0.00035363,2]
[314046779,1707946233084,-343.0,0.00035363,2]
[314046780,1707946233094,-321.0,0.00035363,2]
[314046781,1707946233103,-150.0,0.00035363,2]
[314046782,1707946233112,-242.951,0.00035363,2]
[314046783,1707946233121,-2832.0,0.00035363,2]
[314046784,1707946233130,-1863.0,0.00035363,2]
[314046785,1707946233140,-222.021518,0.00035398,7]
[314046786,1707946233150,-17356.5456648,0.00035406,8]
[314046787,1707946233159,-1239.75326177,0.00035411,8]
[314046788,1707946233168,-119303.4414,0.00035416,2]
[314046789,1707946233178,-1535.5743,0.00035416,2]
[314046790,1707946233189,-2487.5329,0.00035416,2]
[314046791,1707946233199,-12394.9183,0.00035416,2]
[314046792,1707946233209,-2734.30338716,0.00035421,2]
[314046793,1707946233219,-222.021518,0.00035498,18]
[314046794,1707946233230,-9918.02609416,0.00035506,8]
[314046795,1707946233241,-1231.8376,0.00035516,2]
[314046796,1707946233251,-3940.6771,0.00035516,2]
[314046797,1707946233265,-9700.0,0.00035516,2]
[314046798,1707946233276,-245000.0,0.00035516,2]
[314046799,1707946233286,-2352.1234,0.00035516,2]
[314046800,1707946233296,-418.5018,0.00035516,2]
[314046801,1707946233308,-2925.2538,0.00035516,2]
[314046802,1707946233317,-37463.4233,0.00035516,2]
[314046803,1707946233327,-3216.8551,0.00035516,3]
[314046804,1707946233339,-5000.0,0.00035516,3]
[314046805,1707946233350,-1929.97347577,0.00035516,8]
[314046806,1707946233359,-1780.25,0.00035532,5]
[314046807,1707946233368,-680.74,0.00035547,2]
[314046808,1707946233377,-1777.26,0.00035572,5]
[314046809,1707946233388,-153.13,0.000356,3]
[314046810,1707946233397,-153.13,0.000356,3]
[314046811,1707946233406,-153.13,0.000356,3]
[314046812,1707946233415,-153.13,0.000356,3]
[314046813,1707946233425,-153.13,0.000356,3]
[314046814,1707946233434,-153.13,0.000356,3]
[314046815,1707946233444,-153.13,0.000356,3]
[314046816,1707946233453,-153.13,0.000356,3]
[314046817,1707946233463,-153.13,0.000356,3]
[314046818,1707946233472,-153.13,0.000356,3]
[314046819,1707946233482,-153.13,0.000356,3]
[314046820,1707946233491,-153.13,0.000356,3]
[314046821,1707946233500,-153.13,0.000356,3]
[314046822,1707946233510,-387.78371377,0.00035616,7]
[314046823,1707946233519,-482.41214266,0.00035616,7]
[314046824,1707946233528,-490.86879114,0.00035616,7]
[314046825,1707946233538,-500.0,0.00035616,7]
[314046826,1707946233548,-564.59527084,0.00035616,7]
[314046827,1707946233557,-500.0,0.00035616,7]
[314046828,1707946233566,-210.45528351,0.00035616,7]
[314046829,1707946233575,-500.0,0.00035616,7]
[314046830,1707946233584,-500.0,0.00035616,7]
[314046831,1707946233594,-500.0,0.00035616,7]
[314046832,1707946233603,-500.0,0.00035616,7]
[314046833,1707946233612,-500.0,0.00035616,7]
[314046834,1707946233622,-500.0,0.00035616,7]
[314046835,1707946233631,-500.0,0.00035616,7]
[314046836,1707946233640,-500.0,0.00035616,7]
[314046837,1707946233649,-500.0,0.00035616,7]
[314046838,1707946233659,-551.22346171,0.00035616,7]
[314046839,1707946233670,-500.0,0.00035616,7]
[314046840,1707946233679,-500.0,0.00035616,7]
[314046841,1707946233688,-581.69900433,0.00035616,7]
[314046842,1707946233697,-500.0,0.00035616,7]
[314046843,1707946233707,-500.0,0.00035616,7]
[314046844,1707946233718,-500.0,0.00035616,7]
[314046845,1707946233727,-500.0,0.00035616,7]
[314046846,1707946233736,-500.0,0.00035616,7]
[314046847,1707946233745,-500.0,0.00035616,7]
[314046848,1707946233754,-500.0,0.00035616,7]
[314046849,1707946233765,-500.0,0.00035616,7]
[314046850,1707946233775,-500.0,0.00035616,7]
[314046851,1707946233788,-548.51607095,0.00035616,7]
[314046852,1707946233798,-500.0,0.00035616,7]
[314046853,1707946233809,-544.70537073,0.00035616,7]
[314046854,1707946233818,-500.0,0.00035616,7]
[314046855,1707946233828,-500.0,0.00035616,7]
[314046856,1707946233839,-500.0,0.00035616,7]
[314046857,1707946233848,-512.67585936,0.00035616,7]
[314046858,1707946233858,-500.0,0.00035616,7]
[314046859,1707946233867,-546.19255227,0.00035616,7]
[314046860,1707946233878,-500.0,0.00035616,7]
[314046861,1707946233887,-509.54190916,0.00035616,7]
[314046862,1707946233897,-500.0,0.00035616,7]
[314046863,1707946233906,-500.0,0.00035616,7]
[314046864,1707946233916,-500.0,0.00035616,7]
[314046865,1707946233925,-500.0,0.00035616,7]
[314046866,1707946233935,-500.0,0.00035616,7]
[314046867,1707946233944,-500.0,0.00035616,7]
[314046868,1707946233955,-500.0,0.00035616,7]
[314046869,1707946233966,-427.45833807,0.00035616,7]
[314046870,1707946233976,-500.0,0.00035616,7]
[314046871,1707946233986,-500.0,0.00035616,7]
[314046872,1707946233995,-500.0,0.00035616,7]
[314046873,1707946234005,-500.0,0.00035616,7]
[314046874,1707946234016,-500.0,0.00035616,7]
[314046875,1707946234026,-500.0,0.00035616,7]
[314046876,1707946234036,-500.0,0.00035616,7]
[314046877,1707946234046,-500.0,0.00035616,7]
[314046878,1707946234057,-500.0,0.00035616,7]
[314046879,1707946234068,-500.0,0.00035616,7]
[314046880,1707946234078,-500.0,0.00035616,7]
[314046881,1707946234088,-504.84872914,0.00035616,7]
[314046882,1707946234098,-500.0,0.00035616,7]
[314046883,1707946234108,-500.0,0.00035616,7]
[314046884,1707946234117,-556.3337281,0.00035616,7]
[314046885,1707946234125,-500.0,0.00035616,7]
[314046886,1707946234135,-500.0,0.00035616,7]
[314046887,1707946234144,-500.0,0.00035616,7]
[314046888,1707946234153,-500.0,0.00035616,7]
[314046889,1707946234162,-500.0,0.00035616,7]
[314046890,1707946234173,-500.0,0.00035616,7]
[314046891,1707946234183,-500.0,0.00035616,7]
[314046892,1707946234193,-500.0,0.00035616,7]
[314046893,1707946234203,-500.0,0.00035616,7]
[314046894,1707946234212,-500.0,0.00035616,7]
[314046895,1707946234221,-500.0,0.00035616,7]
[314046896,1707946234231,-500.0,0.00035616,7]
[314046897,1707946234240,-500.0,0.00035616,7]
[314046898,1707946234250,-507.60135352,0.00035616,7]
[314046899,1707946234265,-500.0,0.00035616,7]
[314046900,1707946234274,-500.0,0.00035616,7]
[314046901,1707946234285,-500.0,0.00035616,7]
[314046902,1707946234294,-521.35394073,0.00035616,7]
[314046903,1707946234304,-500.0,0.00035616,7]
[314046904,1707946234313,-500.0,0.00035616,7]
[314046905,1707946234323,-500.0,0.00035616,7]
[314046906,1707946234334,-500.0,0.00035616,7]
[314046907,1707946234346,-500.0,0.00035616,7]
[314046908,1707946234356,-500.0,0.00035616,7]
[314046909,1707946234365,-500.0,0.00035616,7]
[314046910,1707946234374,-500.0,0.00035616,7]
[314046911,1707946234383,-500.0,0.00035616,7]
[314046912,1707946234393,-537.13202264,0.00035616,7]
[314046913,1707946234404,-500.0,0.00035616,7]
[314046914,1707946234413,-500.0,0.00035616,7]
[314046915,1707946234422,-500.0,0.00035616,7]
[314046916,1707946234432,-497.97917588,0.00035616,7]
[314046917,1707946234441,-500.0,0.00035616,7]
[314046918,1707946234450,-500.0,0.00035616,7]
[314046919,1707946234459,-500.0,0.00035616,7]
[314046920,1707946234469,-500.0,0.00035616,7]
[314046921,1707946234478,-505.19137249,0.00035616,7]
[314046922,1707946234487,-518.44206693,0.00035616,7]
[314046923,1707946234496,-500.0,0.00035616,7]
[314046924,1707946234506,-500.0,0.00035616,7]
[314046925,1707946234515,-500.0,0.00035616,7]
[314046926,1707946234524,-500.0,0.00035616,7]
[314046927,1707946234534,-515.26668003,0.00035616,7]
[314046928,1707946234543,-500.0,0.00035616,7]
[314046929,1707946234552,-500.0,0.00035616,7]
[314046930,1707946234562,-500.0,0.00035616,7]
[314046931,1707946234571,-258.10664868,0.00035616,7]
[314046932,1707946234580,-518.23,0.00035616,7]
[314046933,1707946234589,-512.23319572,0.00035616,7]
[314046934,1707946234598,-500.0,0.00035616,7]
[314046935,1707946234608,-500.0,0.00035616,7]
[314046936,1707946234617,-500.0,0.00035616,7]
[314046937,1707946234626,-500.0,0.00035616,7]
[314046938,1707946234635,-500.0,0.00035616,7]
[314046939,1707946234645,-500.0,0.00035616,7]
[314046940,1707946234655,-500.0,0.00035616,7]
[314046941,1707946234664,-500.0,0.00035616,7]
[314046942,1707946234675,-500.0,0.00035616,7]
[314046943,1707946234684,-500.0,0.00035616,7]
[314046944,1707946234695,-500.0,0.00035616,7]
[314046945,1707946234705,-515.03856443,0.00035616,2]
[314046946,1707946234715,-175.03721412,0.00035616,7]
[314046947,1707946234725,-500.0,0.00035616,7]
[314046948,1707946234735,-500.0,0.00035616,7]
[314046949,1707946234745,-516.43203354,0.00035616,7]
[314046950,1707946234756,-500.0,0.00035616,7]
[314046951,1707946234765,-500.0,0.00035616,7]
[314046952,1707946234775,-500.0,0.00035616,7]
[314046953,1707946234784,-500.0,0.00035616,7]
[314046954,1707946234793,-500.0,0.00035616,7]
[314046955,1707946234804,-500.0,0.00035616,7]
[314046956,1707946234814,-171.36903977,0.00035616,7]
[314046957,1707946234824,-166.11207641,0.00035616,7]
[314046958,1707946234834,-500.0,0.00035616,7]
[314046959,1707946234845,-500.0,0.00035616,7]
[314046960,1707946234855,-500.0,0.00035616,7]
[314046961,1707946234866,-500.0,0.00035616,7]
[314046962,1707946234875,-500.0,0.00035616,7]
[314046963,1707946234884,-505.65777668,0.00035616,7]
[314046964,1707946234894,-500.0,0.00035616,7]
[314046965,1707946234904,-500.0,0.00035616,7]
[314046966,1707946234913,-500.0,0.00035616,7]
[314046967,1707946234924,-500.0,0.00035616,7]
[314046968,1707946234933,-503.56176881,0.00035616,7]
[314046969,1707946234942,-500.0,0.00035616,7]
[314046970,1707946234951,-500.0,0.00035616,7]
[314046971,1707946234961,-500.0,0.00035616,7]
[314046972,1707946234971,-500.0,0.00035616,7]
[314046973,1707946234981,-685.1352114,0.00035616,2]
[314046974,1707946234990,-500.0,0.00035616,7]
[314046975,1707946235001,-500.0,0.00035616,7]
[314046976,1707946235010,-519.02279482,0.00035616,7]
[314046977,1707946235019,-500.0,0.00035616,7]
[314046978,1707946235029,-104.61950329,0.00035616,7]